fUSD/lending_fUSD_20260307
["ID","MTS","AMOUNT","RATE_DAILY","PERIOD"]
[407884772,1772893837531,-500.0,0.00016292,2]
[407884773,1772893837542,-152.48,0.00016393,2]
[407884774,1772893837555,-626.36,0.00016438,2]
[407884775,1772893837564,-152.48,0.00016663,2]
[407884776,1772893837573,-517.5014667,0.00016711,2]
[407884777,1772893837583,-626.36,0.00016712,2]
[407884778,1772893837592,-152.48,0.00016933,2]
[407884779,1772893837601,-166.66,0.00016966,2]
[407884780,1772893837611,-626.36,0.00016986,2]
[407884781,1772893837620,-166.0,0.00017027,2]
[407884782,1772893837629,-517.5014667,0.00017167,2]
[407884783,1772893837639,-2000.0,0.00017201,2]
[407884784,1772893837648,-152.48,0.00017203,2]
[407884785,1772893837657,-626.4,0.0001726,2]
[407884786,1772893837666,-166.66,0.00017323,2]
[407884787,1772893837676,-152.48,0.00017473,2]
[407884788,1772893837685,-163.75,0.00017567,2]
[407884789,1772893837694,-391.69,0.00017575,2]
[407884790,1772893837703,-964.14,0.00017596,2]
[407884791,1772893837714,-517.5014667,0.00017622,2]
[407884792,1772893837723,-166.66,0.00017681,2]
[407884793,1772893837734,-152.48,0.00017743,2]
[407884794,1772893837744,-3000.0,0.00017808,7]
[407884795,1772893837753,-3000.0,0.00017808,7]
[407884796,1772893837763,-1400.0,0.00017808,7]
[407884797,1772893837773,-250.0,0.00017834,2]
[407884798,1772893837782,-496.6,0.0001789,2]
[407884799,1772893837792,-19476.82719705,0.000179,2]
[407884800,1772893838762,-1881.50549857,0.000179,2]
[407884801,1772893838773,-488.75697407,0.000179,2]
[407884802,1772893838783,-199.8,0.00018,4]
[407884803,1772893838792,-152.48,0.00018013,2]
[407884804,1772893838801,-166.66,0.00018038,2]
[407884805,1772893838810,-136.86439079,0.00018078,2]
[407884806,1772893838887,-380.63707591,0.00018078,2]
[407884807,1772893838896,-166.66,0.00018125,2]
[407884808,1772893838906,-250.0,0.00018264,2]
[407884809,1772893838915,-693.3919763,0.00018264,2]
[407884810,1772893838925,-287.83001249,0.00018264,2]
[407884811,1772893838934,-500.0,0.00018264,2]
[407884812,1772893838943,-500.0,0.00018264,2]
[407884813,1772893838952,-500.0,0.00018264,2]
[407884814,1772893838961,-500.0,0.00018264,2]
[407884815,1772893838970,-500.0,0.00018264,2]
[407884816,1772893838980,-500.0,0.00018264,2]
[407884817,1772893838989,-500.0,0.00018264,2]
[407884818,1772893838998,-51.0823159,0.00018264,2]
[407884821,1772893840076,-448.9176841,0.00018264,2]
[407884822,1772893840087,-500.0,0.00018264,2]
[407884823,1772893840096,-500.0,0.00018264,2]
[407884824,1772893840106,-500.0,0.00018264,2]
[407884825,1772893840115,-693.3919763,0.00018264,2]
[407884826,1772893840124,-200.0,0.00018264,2]
[407884827,1772893840134,-500.0,0.00018264,2]
[407884828,1772893840143,-152.53,0.00018283,2]
[407884829,1772893840152,-719.04747942,0.00018319,2]
[407884830,1772893840161,-745.65223616,0.00018374,2]
[407884831,1772893840170,-812.91,0.00018381,2]
[407884832,1772893840179,-166.66,0.00018395,2]
[407884833,1772893840189,-773.2413689,0.00018429,2]
[407884834,1772893840198,-391.69,0.00018454,2]
[407884835,1772893840208,-801.85129955,0.00018484,2]
[407884836,1772893840217,-517.5014667,0.00018533,2]
[407884837,1772893840227,-831.51979763,0.00018539,2]
[407884838,1772893840236,-862.28603014,0.00018594,2]
[407884839,1772893840246,-894.19061326,0.00018649,2]
[407884840,1772893840255,-927.27566595,0.00018704,2]
[407884841,1772893840264,-166.66,0.00018724,2]
[407884842,1772893840273,-166.66,0.00018752,2]
[407884843,1772893840282,-961.58486559,0.00018759,2]
[407884844,1772893840292,-825.50162876,0.00018812,2]
[407884845,1772893840301,-200.0,0.00018812,2]
[407884846,1772893840311,-500.0,0.00018812,2]
[407884847,1772893840320,-997.16350561,0.00018814,2]
[407884848,1772893840329,-3000.0,0.00018904,7]
[407884849,1772893840339,-3000.0,0.00018904,7]
[407884850,1772893840348,-1400.0,0.00018904,7]
[407884852,1772893840357,-2457.02634798,0.00018966,2]
[407884853,1772893840366,-517.5014667,0.00018989,2]
[407884854,1772893840375,-1245.26210123,0.00019014,2]
[407884855,1772893840383,-1232.0,0.00019035,2]
[407884856,1772893840392,-1232.0,0.00019035,2]
[407884857,1772893840401,-250.11,0.00019066,2]
[407884858,1772893840411,-1245.26210123,0.00019068,2]
[407884859,1772893840420,-2457.02634793,0.0001907,2]
[407884860,1772893840429,-500.0,0.00019073,2]
[407884861,1772893840439,-1279.0,0.00019081,2]
[407884862,1772893840449,-922.0,0.00019081,2]
[407884863,1772893840458,-1212.0,0.00019081,2]
[407884864,1772893840467,-2460.0,0.00019081,2]
[407884865,1772893840481,-5991.0,0.00019081,2]
[407884866,1772893840490,-397.97236465,0.00019097,2]
[407884867,1772893840499,-205.0,0.00019099,2]
[407884868,1772893840508,-1245.26210123,0.00019151,2]
[407884869,1772893840519,-1232.0,0.00019165,2]
[407884870,1772893840527,-2457.02634793,0.00019174,2]
[407884871,1772893840536,-1925.58303181,0.000192,2]
[407884872,1772893840629,-501.29399578,0.00019081,2]
[407884873,1772893840639,-117.70600422,0.00019081,2]
[407884874,1772893840649,-74.41696819,0.000192,2]
[407884875,1772893840658,-1245.26210123,0.00019233,2]
[407884876,1772893840667,-496.6,0.00019267,2]
[407884877,1772893840676,-2457.02634793,0.00019277,2]
[407884878,1772893840685,-1245.26210123,0.00019315,2]
[407884879,1772893840694,-166.66,0.00019322,2]
[407884880,1772893840703,-1232.0,0.00019326,2]
[407884881,1772893840712,-391.69,0.00019333,2]
[407884882,1772893840721,-2000.0,0.00019351,2]
[407884883,1772893840730,-500.0,0.0001936,2]
[407884884,1772893840739,-781.06,0.00019363,2]
[407884885,1772893840757,-1245.26210123,0.0001937,2]
[407884886,1772893840774,-2457.02634793,0.00019381,2]
[407884887,1772893840788,-517.5014667,0.00019444,2]
[407884888,1772893840799,-1750.17245443,0.00019448,2]
[407884889,1772893840808,-1245.26210123,0.00019452,2]
[407884890,1772893840818,-2457.02634793,0.00019485,2]
[407884891,1772893840827,-1232.0,0.00019525,2]
[407884892,1772893840842,-1245.26210123,0.00019534,2]
[407884893,1772893840850,-2457.02634793,0.00019589,2]
[407884894,1772893840862,-1001.29934897,0.000196,2]
[407884895,1772893840872,-2216.1377938,0.000196,2]
[407884896,1772893840883,-3316.0,0.00019601,2]
[407884897,1772893840895,-168.0,0.00019602,2]
[407884898,1772893840905,-1245.26210123,0.00019616,2]
[407884899,1772893840913,-291.69540907,0.00019622,2]
[407884900,1772893840924,-781.06,0.00019637,2]
[407884901,1772893840935,-2457.02634793,0.00019692,2]
[407884902,1772893840946,-1245.26210123,0.00019699,2]
[407884903,1772893840957,-150.0,0.00019699,2]
[407884904,1772893840966,-500.0,0.00019699,2]
[407884905,1772893840976,-150.0,0.00019699,2]
[407884906,1772893840988,-150.0,0.00019699,2]
[407884907,1772893840997,-179.48565848,0.00019699,2]
[407884908,1772893841008,-500.0,0.00019699,2]
[407884909,1772893841018,-180.0,0.00019699,2]
[407884910,1772893841027,-250.0,0.00019699,2]
[407884911,1772893841037,-150.0,0.00019699,2]
[407884912,1772893841048,-150.0,0.00019699,2]
[407884913,1772893841057,-150.0,0.00019699,2]
[407884914,1772893841067,-500.0,0.00019699,2]
[407884915,1772893841076,-500.0,0.00019699,2]
[407884916,1772893841085,-150.0,0.00019699,2]
[407884917,1772893841094,-500.0,0.00019699,2]
[407884918,1772893841104,-2610.383,0.000197,2]
[407884919,1772893841115,-171.829,0.000197,2]
[407884920,1772893841125,-1232.0,0.00019717,2]
[407884921,1772893841135,-1000.0,0.00019738,2]
[407884922,1772893841144,-1245.26210123,0.00019753,2]
[407884923,1772893841153,-150.0,0.00019754,2]
[407884924,1772893841163,-500.0,0.00019754,2]
[407884925,1772893841174,-150.0,0.00019754,2]
[407884926,1772893841182,-150.0,0.00019754,2]
[407884927,1772893841193,-500.0,0.00019754,2]
[407884928,1772893841204,-200.0,0.00019754,2]
[407884929,1772893841214,-500.0,0.00019754,2]
[407884930,1772893841223,-561.66021598,0.00019754,2]
[407884931,1772893841232,-179.00078399,0.00019754,2]
[407884932,1772893841241,-500.0,0.00019754,2]
[407884933,1772893841252,-2457.02634793,0.00019796,2]
[407884934,1772893841263,-2000.0,0.000198,2]
[407884935,1772893841272,-2000.0,0.000198,2]
[407884936,1772893841281,-2000.0,0.000198,2]
[407884937,1772893841292,-2000.0,0.000198,2]
[407884938,1772893841303,-200.0,0.00019809,2]
[407884939,1772893841313,-500.0,0.00019809,2]
[407884940,1772893841324,-150.0,0.00019809,2]
[407884941,1772893841335,-150.0,0.00019809,2]
[407884942,1772893841344,-500.0,0.00019809,2]
[407884943,1772893841353,-500.0,0.00019809,2]
[407884944,1772893841364,-544.737577,0.00019809,2]
[407884945,1772893841375,-291.69540907,0.00019817,2]
[407884946,1772893841384,-1245.26210123,0.00019836,2]
[407884947,1772893841394,-1000.0,0.00019852,2]
[407884948,1772893841406,-264.04850966,0.00019863,2]
[407884949,1772893841416,-150.0,0.00019863,2]
[407884950,1772893841427,-150.0,0.00019863,2]
[407884951,1772893841435,-500.0,0.00019863,2]
[407884952,1772893841445,-500.0,0.00019863,2]
[407884953,1772893841456,-9783.35772538,0.000199,3]
[407884954,1772893841465,-5000.0,0.000199,2]
[407884955,1772893841479,-517.5014667,0.000199,2]
[407884956,1772893841488,-2457.02634793,0.000199,2]
[407884957,1772893841497,-496.6,0.00019908,2]
[407884958,1772893841507,-500.0,0.00019908,2]
[407884959,1772893841516,-250.0,0.00019918,2]
[407884960,1772893841527,-250.0,0.00019918,2]
[407884961,1772893841536,-500.0,0.00019918,2]
[407884962,1772893841547,-500.0,0.00019918,2]
[407884963,1772893841556,-166.66,0.0001992,2]
[407884964,1772893841566,-500.0,0.00019973,2]
[407884965,1772893841575,-150.0,0.00019973,2]
[407884966,1772893841584,-3056.23,0.00019988,2]
[407884967,1772893841593,-3056.23,0.00019988,2]
[407884968,1772893841602,-3056.23,0.00019988,2]
[407884969,1772893841612,-3056.23,0.00019988,2]
[407884970,1772893841621,-3081.98,0.00019988,2]
[407884971,1772893841630,-496.6,0.0001999,2]
[407884972,1772893841639,-496.6,0.0001999,2]
[407884973,1772893841648,-236.53366724,0.0001999,2]
[407884974,1772893841657,-236.53366724,0.0001999,2]
[407884975,1772893841666,-236.53366724,0.0001999,2]
[407884976,1772893841675,-3040.8595225,0.00019995,2]
[407884977,1772893841684,-158.9330182,0.00019995,2]
[407884978,1772893841694,-300.0,0.00019999,2]
[407884979,1772893841702,-300.0,0.00019999,2]
[407884980,1772893841712,-672.16452504,0.00019999,2]
[407884981,1772893841721,-300.0,0.00019999,2]
[407884982,1772893841730,-666.0,0.00019999,2]
[407884983,1772893841739,-500.0,0.00019999,2]
[407884984,1772893841748,-1295.19930183,0.00019999,5]
[407884985,1772893841757,-500.0,0.00019999,2]
[407884986,1772893841766,-343.44849106,0.00019999,2]
[407884987,1772893841776,-485.29077404,0.00019999,2]
[407884988,1772893841785,-500.0,0.00019999,2]
[407884989,1772893841794,-228.30765343,0.00019999,2]
[407884990,1772893841804,-364.8783079,0.00019999,2]
[407884991,1772893841813,-500.0,0.00019999,2]
[407884992,1772893841822,-500.0,0.00019999,2]
[407884993,1772893842168,-223.23580262,0.00019999,2]
[407884994,1772893842178,-287.08423227,0.00019999,2]
[407884995,1772893842187,-4149.0,0.0002,2]
[407884996,1772893842197,-3000.0,0.0002,7]
[407884997,1772893842206,-3000.0,0.0002,7]
[407884998,1772893842215,-1400.0,0.0002,7]
[407884999,1772893842224,-253351.11792261,0.0002,2]
[407885000,1772893842233,-25709.44243048,0.0002,2]
[407885001,1772893842243,-452193.00525244,0.0002,2]
[407885002,1772893842252,-3950.0,0.0002,2]
[407885003,1772893842263,-1300.03819717,0.0002,2]
[407885004,1772893842272,-132650.75387157,0.0002,2]
[407885005,1772893842281,-2953.98353477,0.0002,7]
[407885006,1772893842291,-501.32581746,0.0002,10]
[407885007,1772893842300,-532.31036079,0.0002,7]
[407885008,1772893842309,-1049.46282995,0.0002,2]
[407885009,1772893842318,-2875.81417238,0.0002,2]
[407885010,1772893842327,-12980.51845403,0.0002,2]
[407885011,1772893842337,-152.0,0.0002,2]
[407885012,1772893842347,-1658.46,0.0002,30]
[407885013,1772893842357,-700.67637051,0.0002,14]
[407885014,1772893842367,-812.71701612,0.0002,3]
[407885015,1772893842376,-281.34618741,0.0002,2]
[407885016,1772893842386,-281.34618741,0.0002,2]
[407885017,1772893842395,-281.34618741,0.0002,2]
[407885018,1772893842405,-281.34618741,0.0002,2]
[407885019,1772893842414,-281.34618741,0.0002,2]
[407885020,1772893842423,-281.34618741,0.0002,2]
[407885022,1772893842433,-281.34618741,0.0002,2]
[407885023,1772893842442,-281.34618741,0.0002,2]
[407885024,1772893842451,-281.3461874,0.0002,2]
[407885025,1772893842461,-281.3461874,0.0002,2]
[407885026,1772893842470,-281.3461874,0.0002,2]
[407885027,1772893842480,-281.3461874,0.0002,2]
[407885028,1772893842493,-281.3461874,0.0002,2]
[407885029,1772893842503,-281.3461874,0.0002,2]
[407885030,1772893842512,-281.3461874,0.0002,2]
[407885031,1772893842522,-281.3461874,0.0002,2]
[407885032,1772893842533,-281.3461874,0.0002,2]
[407885033,1772893842542,-281.3461874,0.0002,2]
[407885034,1772893842551,-281.3461874,0.0002,2]
[407885035,1772893842562,-281.3461874,0.0002,2]
[407885036,1772893842572,-1135308.18530927,0.0002,2]
[407885037,1772893842627,-2262.28448289,0.0002,2]
[407885118,1772893888815,-164.24,0.00022,120]
[407885119,1772893949890,-469.55689871,0.00022856,120]
[407885120,1772893949911,-310.11785754,0.00022856,120]
[407885121,1772893949934,-10000.0,0.00024658,120]
[407885122,1772893949954,-10000.0,0.00024658,120]
[407885123,1772893949976,-10000.0,0.00024658,120]
[407885124,1772893949997,-10000.0,0.00024658,120]
[407885125,1772893950019,-10000.0,0.00024658,120]
[407885126,1772893950039,-10000.0,0.00024658,120]
[407885127,1772893950060,-10000.0,0.00024658,120]
[407885128,1772893950081,-10000.0,0.00024658,120]
[407885129,1772893950101,-10000.0,0.00024658,120]
[407885130,1772893950120,-10000.0,0.00024658,120]
[407885131,1772893950140,-10000.0,0.00024658,120]
[407885132,1772893950160,-1394.0,0.00024658,120]
[407885133,1772894012882,-1600.0,0.00026109,120]
[407885134,1772894012910,-1444.21779808,0.00029,120]
[407885135,1772894012932,-196955.78220192,0.000295,120]
[407885136,1772894065156,-200000.0,0.000295,120]
[407885137,1772894071154,-200000.0,0.000295,120]
[407885138,1772894078142,-200000.0,0.000295,120]
[407885139,1772894084182,-200000.0,0.000295,120]
[407885140,1772894088014,-48860.42581027,0.000295,120]
[407885141,1772894121014,-202.88146487,0.000295,120]
[407885142,1772894121037,-1261.1079075,0.00029786,120]
[407885143,1772894121057,-255.66666161,0.00029936,120]
[407885144,1772894121078,-1610.81667,0.0003,120]
[407885145,1772894121098,-175.28931458,0.0003,120]
[407885146,1772894121119,-5647.24826118,0.0003,120]
[407885147,1772894121139,-300.0,0.0003,120]
[407885148,1772894121160,-255.6666616,0.00030079,120]
[407885149,1772894121181,-1261.1079075,0.00030085,120]
[407885150,1772894121205,-1261.1079075,0.00030384,120]
[407885151,1772894121225,-201.91,0.00030411,120]
[407885152,1772894121246,-1261.1079075,0.00030683,120]
[407885153,1772894121269,-1261.1079075,0.00030982,120]
[407885154,1772894121289,-160.0,0.00031,120]
[407885155,1772894121382,2000.0,0.00028,120]
[407885156,1772894121416,2000.0,0.00028,120]
[407885157,1772894121441,1000.0,0.0003,120]
[407885158,1772894121480,2000.0,0.00028,120]
[407885159,1772894121505,1000.0,0.0003,120]
[407885160,1772894121576,2000.0,0.00028,120]
[407885161,1772894121616,2000.0,0.00028,120]
[407885162,1772894121644,582.24029999,0.00028,120]
[407885163,1772894152145,-180.06182325,0.00032,120]
[407885164,1772894152167,-223.88690886,0.00032,120]
[407885165,1772894152191,-197.95078041,0.00032,120]
[407885166,1772894152212,-204.74374837,0.00032,120]
[407885167,1772894152234,-169.56456178,0.00032,120]
[407885168,1772894152257,-259.15593785,0.00032,120]
[407885169,1772894152279,-180.0,0.00032,120]
[407885170,1772894152303,-1091.17,0.00032,120]
[407885171,1772894159417,-226.0,0.00032877,120]
[407885172,1772894159439,-2000.0,0.00032877,120]
[407885173,1772894159462,-2000.0,0.00032877,120]
[407885174,1772894159486,-2000.0,0.00032877,120]
[407885175,1772894159508,-2000.0,0.00032877,120]
[407885176,1772894159531,-2000.0,0.00032877,120]
[407885177,1772894159553,-1837.0,0.00032877,120]
[407885178,1772894159576,-180.06182325,0.00033,120]
[407885179,1772894159599,-197.95078041,0.00033,120]
[407885180,1772894159619,-204.74374837,0.00033,120]
[407885181,1772894159642,-259.15593785,0.00033,120]
[407885182,1772894159664,-2742.06915112,0.00033,120]
[407885183,1772894164338,169.56456178,0.00032,120]
[407885184,1772894166832,500.0,0.00033,120]
[407885185,1772894173850,194.36695338,0.00032,120]
[407885186,1772894175250,194.36695338,0.00033,120]
[407885187,1772894189218,-180.06182325,0.000339,120]
[407885188,1772894189241,-197.95078041,0.000339,120]
[407885189,1772894189263,-194.36695338,0.000339,120]
[407885190,1772894209332,1600.0,0.00025482,120]
[407885191,1772894209534,1600.0,0.00027798,120]
[407885192,1772894209872,1091.18,0.00032,120]
[407885193,1772894223668,179.70728606,0.00032,120]
[407885194,1772894224423,179.70728606,0.00033,120]
[407885196,1772894363128,326.68610731,0.00032,120]
[407885197,1772894363675,326.68610731,0.00033,120]
[407885198,1772894364242,326.68610731,0.000339,120]
[407885199,1772894426515,1000.0,0.000339,120]
[407885200,1772894488448,194.3669534,0.00032,120]
[407885201,1772894508244,1091.18,0.00032,120]
[407885202,1772894515903,-1321.70951121,0.0003488,120]
[407885206,1772894561356,-359.44255952,0.00035589,120]
[407885207,1772894561383,-433.0,0.00036,120]
[407885215,1772894710649,1545.05903557,0.00036,120]
[407885216,1772894717057,509.52371933,0.00036,120]
[407885217,1772894738816,7899.0,0.00036,120]
[407885218,1772894789772,163.34305366,0.00032,120]
[407885219,1772894790238,163.34305366,0.00033,120]
[407885220,1772894790779,163.34305366,0.000339,120]
[407885221,1772894791414,163.34305366,0.00035,120]
[407885222,1772894800146,-193.7575,0.00015599,2]
[407885223,1772894800168,-0.95822936,0.00015699,2]
[407885224,1772894833011,1562.12,0.00036,120]
[407885226,1772894869553,2000.0,0.000339,120]
[407885227,1772894870511,2000.0,0.000339,120]
[407885228,1772894872102,2000.0,0.000339,120]
[407885229,1772894872518,2000.0,0.000339,120]
[407885230,1772894872801,2000.0,0.000339,120]
[407885231,1772894873497,2000.0,0.000339,120]
[407885232,1772894873654,2000.0,0.000339,120]
[407885233,1772894873787,2000.0,0.000339,120]
[407885234,1772894874103,2000.0,0.000339,120]
[407885235,1772894874772,2000.0,0.000339,120]
[407885236,1772894874918,2000.0,0.000339,120]
[407885237,1772894875058,2000.0,0.000339,120]
[407885238,1772894875392,212.826,0.000339,120]
[407885240,1772894910357,200.0,0.00036,120]
[407885241,1772894922487,160.0,0.000349,120]
[407885245,1772895031489,-300.0,0.00015599,2]
[407885246,1772895031498,-1199.0,0.00015599,2]
[407885247,1772895031507,-2146.95087844,0.000156,2]
[407885248,1772895031518,-13790.75662156,0.000156,2]
[407885249,1772895031528,-500.0,0.00015673,2]
[407885250,1772895031537,-300.0,0.00015699,2]
[407885251,1772895031546,-300.0,0.00015703,2]
[407885252,1772895031556,-1000.0,0.000158,2]
[407885253,1772895031565,-568.08,0.00015868,2]
[407885254,1772895031575,-500.0,0.00015899,2]
[407885255,1772895031584,-500.0,0.00015899,2]
[407885256,1772895031593,-37.77806591,0.00015899,2]
[407885257,1772895031647,-462.22193409,0.00015899,2]
[407885258,1772895031656,-500.0,0.00015899,2]
[407885259,1772895031665,-500.0,0.00015899,2]
[407885260,1772895031675,-500.0,0.00015899,2]
[407885261,1772895031684,-500.0,0.00015899,2]
[407885262,1772895031694,-360.35586836,0.00015899,2]
[407885264,1772895031747,-139.64413164,0.00015899,2]
[407885265,1772895031757,-485.29077404,0.00015899,2]
[407885266,1772895031766,-250.54,0.00015899,2]
[407885267,1772895031775,-500.0,0.00015899,2]
[407885268,1772895031785,-250.54,0.00016173,2]
[407885269,1772895031794,-12218.61,0.00016367,2]
[407885270,1772895031803,-250.56,0.00016447,2]
[407885271,1772895031812,-166.53,0.00016712,2]
[407885272,1772895031821,-636.0,0.00016795,2]
[407885273,1772895031830,-250.0,0.00016829,2]
[407885274,1772895031840,-406.61530427,0.00017009,2]
[407885275,1772895031849,-5539.97,0.00017027,2]
[407885276,1772895031859,-26432.88,0.00017027,2]
[407885277,1772895031869,-9999.99,0.00017027,2]
[407885278,1772895031878,-2500.0,0.00017159,2]
[407885279,1772895031887,-2641.38815727,0.00017159,2]
[407885280,1772895031896,-302.35737128,0.00017159,2]
[407885281,1772895031905,-151.0,0.00017259,2]
[407885282,1772895031914,-151.0,0.00017259,2]
[407885283,1772895031923,-151.0,0.00017259,2]
[407885284,1772895031932,-151.0,0.00017259,2]
[407885285,1772895031941,-151.0,0.00017259,2]
[407885286,1772895031950,-151.0,0.00017259,2]
[407885287,1772895031959,-151.0,0.00017259,2]
[407885288,1772895031968,-151.0,0.00017259,2]
[407885289,1772895031978,-151.0,0.00017259,2]
[407885290,1772895031987,-151.0,0.00017259,2]
[407885291,1772895031997,-169.27143825,0.00017259,2]
[407885292,1772895032006,-2500.0,0.00017269,2]
[407885293,1772895032016,-2500.0,0.00017269,2]
[407885294,1772895032033,-2500.0,0.00017269,2]
[407885295,1772895032047,-1750.17245443,0.0001768,2]
[407885296,1772895032056,-291.69540907,0.00017839,2]
[407885297,1772895032065,-342.57665036,0.00017839,2]
[407885298,1772895032074,-291.69540907,0.00018015,2]
[407885299,1772895032083,-931.88,0.00018055,2]
[407885300,1772895032092,-291.69540907,0.00018192,2]
[407885301,1772895032101,-525.09,0.00018437,2]
[407885302,1772895032111,-931.88,0.00018507,2]
[407885303,1772895032121,-1600.0,0.00018532,2]
[407885304,1772895032130,-150.0,0.00018538,2]
[407885305,1772895032139,-200.0,0.00018563,2]
[407885306,1772895032148,-1482.67,0.00018647,2]
[407885307,1772895032157,-931.88,0.00018958,2]
[407885308,1772895032167,-2500.0,0.00018981,2]
[407885309,1772895032176,-500.0,0.00018999,2]
[407885310,1772895032185,-578.20924308,0.00018999,2]
[407885311,1772895032195,-693.3919763,0.00018999,2]
[407885312,1772895032204,-174.61919141,0.00018999,2]
[407885313,1772895032213,-200.0,0.00018999,2]
[407885314,1772895032222,-404.69161307,0.00018999,2]
[407885315,1772895032232,-693.3919763,0.00018999,2]
[407885316,1772895032242,-500.0,0.00018999,2]
[407885317,1772895032252,-500.0,0.00018999,2]
[407885318,1772895032261,-500.0,0.00018999,2]
[407885319,1772895032271,-500.0,0.00018999,2]
[407885320,1772895032280,-500.0,0.00018999,2]
[407885321,1772895032289,-500.0,0.00018999,2]
[407885322,1772895032298,-500.0,0.00018999,2]
[407885323,1772895032308,-500.0,0.00018999,2]
[407885324,1772895032317,-500.0,0.00018999,2]
[407885325,1772895032327,-500.0,0.00018999,2]
[407885326,1772895032336,-500.0,0.00018999,2]
[407885327,1772895032345,-3012.58037,0.00019,2]
[407885328,1772895032354,-719.04747942,0.00019054,2]
[407885329,1772895032364,-500.0,0.00019079,2]
[407885330,1772895032374,-500.0,0.00019079,2]
[407885331,1772895032383,-500.0,0.00019079,2]
[407885332,1772895032393,-500.0,0.00019079,2]
[407885333,1772895032403,-500.0,0.00019079,2]
[407885334,1772895032413,-500.0,0.00019079,2]
[407885335,1772895032423,-500.0,0.00019079,2]
[407885336,1772895032433,-500.0,0.00019079,2]
[407885337,1772895032443,-500.0,0.00019079,2]
[407885338,1772895032452,-500.0,0.00019079,2]
[407885339,1772895032462,-500.0,0.00019079,2]
[407885340,1772895032471,-500.0,0.00019079,2]
[407885341,1772895032481,-500.0,0.00019079,2]
[407885342,1772895032490,-500.0,0.00019079,2]
[407885343,1772895032499,-500.0,0.00019079,2]
[407885344,1772895032508,-500.0,0.00019079,2]
[407885345,1772895032517,-500.0,0.00019079,2]
[407885346,1772895032526,-500.0,0.00019079,2]
[407885347,1772895032535,-500.0,0.00019079,2]
[407885348,1772895032544,-500.0,0.00019079,2]
[407885349,1772895032554,-500.0,0.00019079,2]
[407885350,1772895032563,-500.0,0.00019079,2]
[407885351,1772895032572,-500.0,0.00019079,2]
[407885352,1772895032581,-637.20977389,0.00019079,2]
[407885353,1772895032590,-500.0,0.00019079,2]
[407885354,1772895032599,-500.0,0.00019079,2]
[407885355,1772895032609,-500.0,0.00019079,2]
[407885356,1772895032619,-500.0,0.00019079,2]
[407885357,1772895032628,-158.31727954,0.00019079,2]
[407885358,1772895032638,-500.0,0.00019079,2]
[407885359,1772895032647,-158.31727954,0.00019079,2]
[407885360,1772895032656,-500.0,0.00019079,2]
[407885361,1772895032667,-158.31727954,0.00019079,2]
[407885362,1772895032677,-500.0,0.00019079,2]
[407885363,1772895032687,-158.31727954,0.00019079,2]
[407885364,1772895032697,-500.0,0.00019079,2]
[407885365,1772895032707,-158.31727954,0.00019079,2]
[407885366,1772895032718,-500.0,0.00019079,2]
[407885367,1772895032730,-158.31727954,0.00019079,2]
[407885368,1772895032740,-1341.0,0.00019081,2]
[407885369,1772895032750,-619.0,0.00019081,2]
[407885370,1772895032758,-1042.0,0.00019081,2]
[407885371,1772895032767,-3503.0,0.00019081,2]
[407885372,1772895032776,-1279.0,0.00019081,2]